[Event "Titled Tuesday Blitz November 15 Late 2022"]
[White "Svane, Frederik"]
[Black "Martinez Alcantara, Jose Eduardo"]
[WhiteFideId "12923044"]
[BlackFideId "3805662"]
[WhiteElo "2466"]
[BlackElo "2705"]
[Result "1-0"]
[Round "07"]
[TimeControl "180+1"]
[Date "2022.11.15"]
[WhiteClock "0:00:10"]
[BlackClock "0:00:01"]

1. e4 {[%clk 0:03:00]}  c5 {[%clk 0:02:54]} 2. Nf3 {[%clk 0:03:01]}  d6 {[%clk 0:02:52]} 3. d4 {[%clk 0:03:00]}  cxd4 {[%clk 0:02:53]} 4. Nxd4 {[%clk 0:03:00]}  Nf6 {[%clk 0:02:53]} 5. Nc3 {[%clk 0:03:00]}  Nc6 {[%clk 0:02:54]} 6. Bg5 {[%clk 0:02:58]}  e6 {[%clk 0:02:54]} 7. Qd2 {[%clk 0:02:55]}  a6 {[%clk 0:02:55]} 8. O-O-O {[%clk 0:02:55]}  Bd7 {[%clk 0:02:55]} 9. f4 {[%clk 0:02:54]}  Be7 {[%clk 0:02:54]} 10. Kb1 {[%clk 0:02:43]}  b5 {[%clk 0:02:51]} 11. Bxf6 {[%clk 0:02:43]}  gxf6 {[%clk 0:02:49]} 12. f5 {[%clk 0:02:43]}  Qb6 {[%clk 0:02:38]} 13. fxe6 {[%clk 0:02:41]}  fxe6 {[%clk 0:02:39]} 14. Nxc6 {[%clk 0:02:41]}  Qxc6 {[%clk 0:02:36]} 15. Bd3 {[%clk 0:02:35]}  O-O-O {[%clk 0:02:35]} 16. Ne2 {[%clk 0:02:29]}  Qc5 {[%clk 0:02:34]} 17. Rhf1 {[%clk 0:02:25]}  Rhe8 {[%clk 0:02:19]} 18. Qh6 {[%clk 0:02:22]}  Rh8 {[%clk 0:01:50]} 19. Nf4 {[%clk 0:00:36]}  Qg5 {[%clk 0:01:44]} 20. Qh3 {[%clk 0:00:35]}  e5 {[%clk 0:01:26]} 21. Ne6 {[%clk 0:00:35]}  Qg8 {[%clk 0:01:27]} 22. Bxb5 {[%clk 0:00:35]}  Bxe6 {[%clk 0:01:11]} 23. Bxa6+ {[%clk 0:00:20]}  Kb8 {[%clk 0:01:10]} 24. Qe3 {[%clk 0:00:20]}  Rd7 {[%clk 0:01:03]} 25. Qb6+ {[%clk 0:00:20]}  Ka8 {[%clk 0:01:03]} 26. Bb5 {[%clk 0:00:20]}  Rb7 {[%clk 0:01:00]} 27. Bc6 {[%clk 0:00:21]}  Qc8 {[%clk 0:01:00]} 28. Rf3 {[%clk 0:00:19]}  Kb8 {[%clk 0:01:00]} 29. Bxb7 {[%clk 0:00:10]}  Qxb7 {[%clk 0:01:00]} 30. Rxd6 {[%clk 0:00:10]}  Bc8 {[%clk 0:00:50]} 31. Qc5 {[%clk 0:00:02]}  Rd8 {[%clk 0:00:43]} 32. Rfd3 {[%clk 0:00:02]}  Rxd6 {[%clk 0:00:39]} 33. Rxd6 {[%clk 0:00:03]}  Qc7 {[%clk 0:00:39]} 34. Qxc7+ {[%clk 0:00:03]}  Kxc7 {[%clk 0:00:39]} 35. Rd2 {[%clk 0:00:03]}  Bb7 {[%clk 0:00:27]} 36. Re2 {[%clk 0:00:04]}  h5 {[%clk 0:00:27]} 37. c3 {[%clk 0:00:01]}  Ba6 {[%clk 0:00:23]} 38. c4 {[%clk 0:00:01]}  Bc5 {[%clk 0:00:22]} 39. b3 {[%clk 0:00:02]}  Bd4 {[%clk 0:00:21]} 40. Kc2 {[%clk 0:00:03]}  Kd6 {[%clk 0:00:20]} 41. Kd3 {[%clk 0:00:03]}  Ke6 {[%clk 0:00:20]} 42. b4 {[%clk 0:00:03]}  Bb7 {[%clk 0:00:18]} 43. a4 {[%clk 0:00:02]}  f5 {[%clk 0:00:18]} 44. a5 {[%clk 0:00:02]}  Bg1 {[%clk 0:00:13]} 45. h3 {[%clk 0:00:02]}  fxe4+ {[%clk 0:00:13]} 46. Rxe4 {[%clk 0:00:03]}  Kf5 {[%clk 0:00:14]} 47. Re1 {[%clk 0:00:03]}  Ba7 {[%clk 0:00:15]} 48. Rf1+ {[%clk 0:00:03]}  Ke6 {[%clk 0:00:14]} 49. g4 {[%clk 0:00:03]}  e4+ {[%clk 0:00:15]} 50. Ke2 {[%clk 0:00:03]}  h4 {[%clk 0:00:15]} 51. b5 {[%clk 0:00:03]}  Bd4 {[%clk 0:00:12]} 52. Rf5 {[%clk 0:00:04]}  Bc8 {[%clk 0:00:08]} 53. c5 {[%clk 0:00:04]}  Ke7 {[%clk 0:00:08]} 54. c6 {[%clk 0:00:04]}  Bxf5 {[%clk 0:00:06]} 55. gxf5 {[%clk 0:00:05]}  Kd6 {[%clk 0:00:07]} 56. f6 {[%clk 0:00:05]}  Bxf6 {[%clk 0:00:05]} 57. Ke3 {[%clk 0:00:05]}  Bc3 {[%clk 0:00:06]} 58. a6 {[%clk 0:00:05]}  Ba5 {[%clk 0:00:04]} 59. Kxe4 {[%clk 0:00:05]}  Kc5 {[%clk 0:00:05]} 60. a7 {[%clk 0:00:05]}  Kxb5 {[%clk 0:00:05]} 61. a8=Q {[%clk 0:00:05]}  Bb6 {[%clk 0:00:06]} 62. Qb7 {[%clk 0:00:06]}  Kc5 {[%clk 0:00:06]} 63. c7 {[%clk 0:00:07]}  Bxc7 {[%clk 0:00:06]} 64. Qxc7+ {[%clk 0:00:08]}  Kb4 {[%clk 0:00:07]} 65. Kd4 {[%clk 0:00:08]}  Kb3 {[%clk 0:00:08]} 66. Qc3+ {[%clk 0:00:08]}  Ka2 {[%clk 0:00:09]} 67. Qb4 {[%clk 0:00:08]}  Ka1 {[%clk 0:00:10]} 68. Kc3 {[%clk 0:00:09]}  Ka2 {[%clk 0:00:01]} 69. Qb2# {[%clk 0:00:10]} 1-0


[Site "https://www.chess.com"]

[Event "Titled Tuesday Blitz November 15 Late 2022"]
[White "Tang, Andrew"]
[Black "Steinberg, Nitzan"]
[WhiteFideId "2059630"]
[BlackFideId "2801795"]
[WhiteElo "2581"]
[BlackElo "2491"]
[Result "1-0"]
[Round "07"]
[TimeControl "180+1"]
[Date "2022.11.15"]
[WhiteClock "0:00:38"]
[BlackClock "0:00:52"]

1. d4 {[%clk 0:03:00]}  Nf6 {[%clk 0:03:00]} 2. c4 {[%clk 0:03:00]}  g6 {[%clk 0:03:00]} 3. f3 {[%clk 0:03:00]}  Bg7 {[%clk 0:02:57]} 4. e4 {[%clk 0:03:00]}  d6 {[%clk 0:02:58]} 5. Nc3 {[%clk 0:03:01]}  O-O {[%clk 0:02:58]} 6. Nge2 {[%clk 0:03:01]}  c5 {[%clk 0:02:56]} 7. d5 {[%clk 0:03:02]}  a6 {[%clk 0:02:55]} 8. a4 {[%clk 0:03:02]}  e6 {[%clk 0:02:54]} 9. Ng3 {[%clk 0:03:03]}  exd5 {[%clk 0:02:54]} 10. cxd5 {[%clk 0:03:03]}  Nbd7 {[%clk 0:02:51]} 11. Be2 {[%clk 0:03:04]}  h5 {[%clk 0:02:48]} 12. Bg5 {[%clk 0:03:04]}  Qb6 {[%clk 0:02:44]} 13. Qd2 {[%clk 0:03:02]}  Nh7 {[%clk 0:02:43]} 14. a5 {[%clk 0:03:02]}  Qa7 {[%clk 0:02:33]} 15. Be7 {[%clk 0:03:02]}  Qb8 {[%clk 0:02:23]} 16. Bxf8 {[%clk 0:02:42]}  Kxf8 {[%clk 0:02:20]} 17. f4 {[%clk 0:02:41]}  b5 {[%clk 0:02:00]} 18. e5 {[%clk 0:02:41]}  h4 {[%clk 0:01:51]} 19. Nge4 {[%clk 0:02:34]}  dxe5 {[%clk 0:01:52]} 20. d6 {[%clk 0:02:29]}  Bb7 {[%clk 0:01:49]} 21. O-O {[%clk 0:02:25]}  exf4 {[%clk 0:01:36]} 22. Rxf4 {[%clk 0:01:51]}  h3 {[%clk 0:01:30]} 23. Raf1 {[%clk 0:01:46]}  Bd4+ {[%clk 0:01:30]} 24. Kh1 {[%clk 0:01:20]}  hxg2+ {[%clk 0:01:30]} 25. Kxg2 {[%clk 0:01:21]}  f5 {[%clk 0:01:31]} 26. Bf3 {[%clk 0:01:04]}  Ne5 {[%clk 0:01:26]} 27. Rh4 {[%clk 0:00:45]}  Kg8 {[%clk 0:00:51]} 28. Qh6 {[%clk 0:00:39]}  Nf8 {[%clk 0:00:51]} 29. Qh8+ {[%clk 0:00:38]}  Kf7 {[%clk 0:00:52]} 30. Qf6+ {[%clk 0:00:38]} 1-0


[Site "https://www.chess.com"]

[Event "Titled Tuesday Blitz November 15 Late 2022"]
[White "Terry, Renato"]
[Black "Pultinevicius, Paulius"]
[WhiteFideId "3803457"]
[BlackFideId "12809390"]
[WhiteElo "2577"]
[BlackElo "2493"]
[Result "0-1"]
[Round "07"]
[TimeControl "180+1"]
[Date "2022.11.15"]
[WhiteClock "0:00:01"]
[BlackClock "0:00:15"]

1. Nf3 {[%clk 0:03:00]}  Nf6 {[%clk 0:02:59]} 2. d4 {[%clk 0:03:01]}  e6 {[%clk 0:02:58]} 3. c4 {[%clk 0:03:01]}  d5 {[%clk 0:02:58]} 4. e3 {[%clk 0:03:01]}  Be7 {[%clk 0:02:57]} 5. b3 {[%clk 0:03:02]}  O-O {[%clk 0:02:57]} 6. Bd3 {[%clk 0:03:02]}  b6 {[%clk 0:02:58]} 7. O-O {[%clk 0:03:02]}  Bb7 {[%clk 0:02:58]} 8. Bb2 {[%clk 0:03:03]}  a6 {[%clk 0:02:59]} 9. Nbd2 {[%clk 0:03:02]}  Nbd7 {[%clk 0:02:58]} 10. Qe2 {[%clk 0:03:03]}  Ne4 {[%clk 0:02:57]} 11. a3 {[%clk 0:03:02]}  c5 {[%clk 0:02:42]} 12. Rfd1 {[%clk 0:03:01]}  f5 {[%clk 0:02:41]} 13. cxd5 {[%clk 0:02:47]}  exd5 {[%clk 0:02:39]} 14. Ne5 {[%clk 0:02:45]}  Nxe5 {[%clk 0:02:33]} 15. dxe5 {[%clk 0:02:45]}  Qe8 {[%clk 0:02:26]} 16. f4 {[%clk 0:02:19]}  Qg6 {[%clk 0:02:18]} 17. Rac1 {[%clk 0:01:54]}  b5 {[%clk 0:02:16]} 18. Nf3 {[%clk 0:01:50]}  Rfd8 {[%clk 0:02:08]} 19. Qe1 {[%clk 0:01:16]}  h6 {[%clk 0:02:02]} 20. b4 {[%clk 0:01:08]}  d4 {[%clk 0:01:49]} 21. exd4 {[%clk 0:00:59]}  c4 {[%clk 0:01:49]} 22. Bb1 {[%clk 0:00:57]}  Bd5 {[%clk 0:01:49]} 23. Qe2 {[%clk 0:00:52]}  a5 {[%clk 0:01:48]} 24. bxa5 {[%clk 0:00:45]}  Rxa5 {[%clk 0:01:49]} 25. Re1 {[%clk 0:00:44]}  Bxa3 {[%clk 0:01:43]} 26. Bxa3 {[%clk 0:00:45]}  Rxa3 {[%clk 0:01:44]} 27. Nh4 {[%clk 0:00:45]}  Qe6 {[%clk 0:01:39]} 28. Nxf5 {[%clk 0:00:44]}  Qxf5 {[%clk 0:01:21]} 29. Bxe4 {[%clk 0:00:44]}  Qxf4 {[%clk 0:01:22]} 30. Bxd5+ {[%clk 0:00:25]}  Rxd5 {[%clk 0:01:23]} 31. e6 {[%clk 0:00:23]}  Qxd4+ {[%clk 0:01:00]} 32. Kh1 {[%clk 0:00:23]}  Rd8 {[%clk 0:01:00]} 33. e7 {[%clk 0:00:17]}  Re8 {[%clk 0:01:01]} 34. Rcd1 {[%clk 0:00:11]}  Rd3 {[%clk 0:00:45]} 35. Qe6+ {[%clk 0:00:11]}  Kh8 {[%clk 0:00:39]} 36. Rb1 {[%clk 0:00:10]}  Qd7 {[%clk 0:00:30]} 37. Qf7 {[%clk 0:00:07]}  c3 {[%clk 0:00:30]} 38. h3 {[%clk 0:00:04]}  Rd2 {[%clk 0:00:28]} 39. Rbc1 {[%clk 0:00:01]}  b4 {[%clk 0:00:27]} 40. Rf1 {[%clk 0:00:01]}  Rxe7 {[%clk 0:00:19]} 41. Qc4 {[%clk 0:00:01]}  Qd5 {[%clk 0:00:15]} 0-1


[Site "https://www.chess.com"]

[Event "Titled Tuesday Blitz November 15 Late 2022"]
[White "Thiel, Thomas"]
[Black "Shapiro, Daniel"]
[WhiteFideId "4615964"]
[BlackFideId "2001780"]
[WhiteElo "2233"]
[BlackElo "2313"]
[Result "0-1"]
[Round "07"]
[TimeControl "180+1"]
[Date "2022.11.16"]
[WhiteClock "0:00:01"]
[BlackClock "0:00:11"]

1. e4 {[%clk 0:03:00]}  e5 {[%clk 0:02:59]} 2. Nf3 {[%clk 0:02:59]}  Nc6 {[%clk 0:02:59]} 3. d4 {[%clk 0:02:58]}  exd4 {[%clk 0:02:59]} 4. Nxd4 {[%clk 0:02:59]}  d6 {[%clk 0:02:59]} 5. g3 {[%clk 0:02:55]}  Bd7 {[%clk 0:02:58]} 6. Bg2 {[%clk 0:02:55]}  Nf6 {[%clk 0:02:58]} 7. Nc3 {[%clk 0:02:53]}  Be7 {[%clk 0:02:59]} 8. O-O {[%clk 0:02:52]}  O-O {[%clk 0:02:59]} 9. Re1 {[%clk 0:02:52]}  Re8 {[%clk 0:02:59]} 10. h3 {[%clk 0:02:48]}  h6 {[%clk 0:02:59]} 11. Be3 {[%clk 0:02:41]}  a6 {[%clk 0:02:58]} 12. Qd2 {[%clk 0:02:38]}  Ne5 {[%clk 0:02:45]} 13. b3 {[%clk 0:02:36]}  c5 {[%clk 0:02:45]} 14. Nf5 {[%clk 0:02:27]}  Bxf5 {[%clk 0:01:35]} 15. exf5 {[%clk 0:02:28]}  Rb8 {[%clk 0:01:24]} 16. Rad1 {[%clk 0:02:25]}  Bf8 {[%clk 0:01:14]} 17. Nd5 {[%clk 0:02:24]}  Nfd7 {[%clk 0:01:07]} 18. g4 {[%clk 0:01:51]}  Rc8 {[%clk 0:00:58]} 19. Bf4 {[%clk 0:01:49]}  Nc6 {[%clk 0:00:49]} 20. Rxe8 {[%clk 0:01:46]}  Qxe8 {[%clk 0:00:49]} 21. Re1 {[%clk 0:01:45]}  Qd8 {[%clk 0:00:48]} 22. Bg3 {[%clk 0:01:38]}  Nde5 {[%clk 0:00:47]} 23. f4 {[%clk 0:01:35]}  Nd7 {[%clk 0:00:47]} 24. g5 {[%clk 0:01:30]}  hxg5 {[%clk 0:00:43]} 25. fxg5 {[%clk 0:01:31]}  Nde5 {[%clk 0:00:42]} 26. f6 {[%clk 0:01:28]}  g6 {[%clk 0:00:41]} 27. Ne3 {[%clk 0:01:19]}  Nd4 {[%clk 0:00:38]} 28. Qf2 {[%clk 0:01:15]}  Ne6 {[%clk 0:00:35]} 29. h4 {[%clk 0:01:05]}  Nd4 {[%clk 0:00:35]} 30. Bh3 {[%clk 0:01:02]}  Ra8 {[%clk 0:00:30]} 31. Bg2 {[%clk 0:00:48]}  Rb8 {[%clk 0:00:28]} 32. c3 {[%clk 0:00:47]}  Nd3 {[%clk 0:00:27]} 33. Qd2 {[%clk 0:00:30]}  Nxe1 {[%clk 0:00:27]} 34. Qxe1 {[%clk 0:00:30]}  Nc6 {[%clk 0:00:21]} 35. Nd5 {[%clk 0:00:30]}  Ne5 {[%clk 0:00:20]} 36. Bxe5 {[%clk 0:00:20]}  dxe5 {[%clk 0:00:20]} 37. Qxe5 {[%clk 0:00:20]}  Qd6 {[%clk 0:00:20]} 38. Ne7+ {[%clk 0:00:18]}  Bxe7 {[%clk 0:00:19]} 39. Qxe7 {[%clk 0:00:18]}  Qxe7 {[%clk 0:00:19]} 40. fxe7 {[%clk 0:00:18]}  Re8 {[%clk 0:00:19]} 41. Bxb7 {[%clk 0:00:18]}  Rxe7 {[%clk 0:00:19]} 42. Bxa6 {[%clk 0:00:17]}  Ra7 {[%clk 0:00:20]} 43. Bc4 {[%clk 0:00:16]}  Rxa2 {[%clk 0:00:20]} 44. b4 {[%clk 0:00:15]}  Rc2 {[%clk 0:00:16]} 45. bxc5 {[%clk 0:00:05]}  Rxc3 {[%clk 0:00:16]} 46. Bf1 {[%clk 0:00:05]}  Rxc5 {[%clk 0:00:15]} 47. Kg2 {[%clk 0:00:05]}  Rc3 {[%clk 0:00:15]} 48. Be2 {[%clk 0:00:03]}  Kf8 {[%clk 0:00:15]} 49. Bf3 {[%clk 0:00:03]}  Ke7 {[%clk 0:00:15]} 50. Kg3 {[%clk 0:00:03]}  Kd6 {[%clk 0:00:15]} 51. Kg4 {[%clk 0:00:04]}  Ke5 {[%clk 0:00:15]} 52. Bg2 {[%clk 0:00:03]}  Rc4+ {[%clk 0:00:13]} 53. Kg3 {[%clk 0:00:03]}  Rc3+ {[%clk 0:00:11]} 54. Kg4 {[%clk 0:00:01]}  Ra3 {[%clk 0:00:11]} 0-1


[Site "https://www.chess.com"]

[Event "Titled Tuesday Blitz November 15 Late 2022"]
[White "Yanchenko, Roman"]
[Black "Tsydypov, Zhamsaran"]
[WhiteFideId "4137329"]
[BlackFideId "4108566"]
[WhiteElo "2489"]
[BlackElo "2591"]
[Result "1/2-1/2"]
[Round "07"]
[TimeControl "180+1"]
[Date "2022.11.15"]
[WhiteClock "0:01:55"]
[BlackClock "0:00:55"]

1. d4 {[%clk 0:03:00]}  Nf6 {[%clk 0:02:45]} 2. c4 {[%clk 0:03:00]}  g6 {[%clk 0:02:44]} 3. Nf3 {[%clk 0:03:01]}  Bg7 {[%clk 0:02:44]} 4. Nc3 {[%clk 0:03:01]}  d5 {[%clk 0:02:44]} 5. e3 {[%clk 0:02:56]}  O-O {[%clk 0:02:43]} 6. Be2 {[%clk 0:02:56]}  b6 {[%clk 0:02:42]} 7. O-O {[%clk 0:02:56]}  Bb7 {[%clk 0:02:42]} 8. b3 {[%clk 0:02:55]}  dxc4 {[%clk 0:02:40]} 9. Bxc4 {[%clk 0:02:51]}  c5 {[%clk 0:02:38]} 10. Bb2 {[%clk 0:02:48]}  Nbd7 {[%clk 0:02:35]} 11. dxc5 {[%clk 0:02:44]}  Nxc5 {[%clk 0:02:32]} 12. Qxd8 {[%clk 0:02:44]}  Rfxd8 {[%clk 0:02:32]} 13. Rad1 {[%clk 0:02:44]}  e6 {[%clk 0:02:28]} 14. Nb5 {[%clk 0:02:41]}  a6 {[%clk 0:02:10]} 15. Nd6 {[%clk 0:02:34]}  Bxf3 {[%clk 0:02:00]} 16. gxf3 {[%clk 0:02:33]}  b5 {[%clk 0:01:59]} 17. Bxf6 {[%clk 0:02:10]}  Bxf6 {[%clk 0:01:58]} 18. Be2 {[%clk 0:02:11]}  Be7 {[%clk 0:01:32]} 19. Ne4 {[%clk 0:02:11]}  Rdc8 {[%clk 0:01:23]} 20. Rc1 {[%clk 0:02:03]}  Nxe4 {[%clk 0:01:22]} 21. fxe4 {[%clk 0:02:04]}  Ba3 {[%clk 0:01:22]} 22. Rxc8+ {[%clk 0:02:04]}  Rxc8 {[%clk 0:01:22]} 23. Bd3 {[%clk 0:02:05]}  g5 {[%clk 0:01:15]} 24. h3 {[%clk 0:02:03]}  Kg7 {[%clk 0:01:12]} 25. Kg2 {[%clk 0:02:03]}  Rc3 {[%clk 0:01:08]} 26. Rd1 {[%clk 0:02:02]}  Bc5 {[%clk 0:01:06]} 27. Kf3 {[%clk 0:02:00]}  h6 {[%clk 0:01:04]} 28. Ke2 {[%clk 0:02:00]}  Kf6 {[%clk 0:01:03]} 29. Rd2 {[%clk 0:01:55]}  Bb6 {[%clk 0:01:00]} 30. Rc2 {[%clk 0:01:55]}  Rxc2+ {[%clk 0:00:55]} 1/2-1/2


[Site "https://www.chess.com"]

[Event "Titled Tuesday Blitz November 15 Late 2022"]
[White "Zhigalko, Sergei"]
[Black "Andreikin, Dmitry"]
[WhiteFideId "13502956"]
[BlackFideId "4158814"]
[WhiteElo "2662"]
[BlackElo "2736"]
[Result "1/2-1/2"]
[Round "07"]
[TimeControl "180+1"]
[Date "2022.11.15"]
[WhiteClock "0:00:08"]
[BlackClock "0:00:14"]

1. e4 {[%clk 0:03:00]}  d6 {[%clk 0:03:00]} 2. d4 {[%clk 0:03:01]}  Nf6 {[%clk 0:02:59]} 3. Nc3 {[%clk 0:03:01]}  g6 {[%clk 0:02:59]} 4. Nf3 {[%clk 0:03:01]}  Bg7 {[%clk 0:02:59]} 5. Be3 {[%clk 0:03:01]}  O-O {[%clk 0:02:59]} 6. h3 {[%clk 0:03:02]}  Nc6 {[%clk 0:02:59]} 7. d5 {[%clk 0:03:02]}  Nb4 {[%clk 0:02:56]} 8. a3 {[%clk 0:02:53]}  Na6 {[%clk 0:02:56]} 9. Bxa6 {[%clk 0:02:52]}  bxa6 {[%clk 0:02:56]} 10. O-O {[%clk 0:02:51]}  Bb7 {[%clk 0:02:50]} 11. Nd4 {[%clk 0:02:40]}  Qd7 {[%clk 0:02:50]} 12. Qd2 {[%clk 0:02:37]}  e6 {[%clk 0:02:46]} 13. Nb3 {[%clk 0:02:32]}  exd5 {[%clk 0:02:39]} 14. exd5 {[%clk 0:02:31]}  Rae8 {[%clk 0:02:35]} 15. Bxa7 {[%clk 0:02:17]}  Ne4 {[%clk 0:02:24]} 16. Nxe4 {[%clk 0:02:15]}  Rxe4 {[%clk 0:02:25]} 17. Bd4 {[%clk 0:01:47]}  Bxd4 {[%clk 0:02:24]} 18. Nxd4 {[%clk 0:01:47]}  Bxd5 {[%clk 0:02:25]} 19. Rfe1 {[%clk 0:01:43]}  Rfe8 {[%clk 0:02:04]} 20. Rxe4 {[%clk 0:01:42]}  Rxe4 {[%clk 0:01:57]} 21. Re1 {[%clk 0:01:42]}  c5 {[%clk 0:01:55]} 22. Rxe4 {[%clk 0:01:32]}  Bxe4 {[%clk 0:01:56]} 23. Ne2 {[%clk 0:01:32]}  Qb7 {[%clk 0:01:47]} 24. f3 {[%clk 0:01:26]}  Bf5 {[%clk 0:01:47]} 25. c3 {[%clk 0:01:19]}  Qb6 {[%clk 0:01:23]} 26. Nf4 {[%clk 0:01:19]}  Be6 {[%clk 0:01:19]} 27. Nxe6 {[%clk 0:00:32]}  fxe6 {[%clk 0:01:20]} 28. Qg5 {[%clk 0:00:32]}  Kf7 {[%clk 0:00:46]} 29. Qf4+ {[%clk 0:00:24]}  Kg7 {[%clk 0:00:43]} 30. Qh4 {[%clk 0:00:18]}  Qb7 {[%clk 0:00:26]} 31. b4 {[%clk 0:00:16]}  cxb4 {[%clk 0:00:22]} 32. axb4 {[%clk 0:00:14]}  e5 {[%clk 0:00:22]} 33. Qc4 {[%clk 0:00:13]}  h5 {[%clk 0:00:19]} 34. Kh2 {[%clk 0:00:12]}  Qf7 {[%clk 0:00:14]} 35. Qxa6 {[%clk 0:00:11]}  Qf4+ {[%clk 0:00:14]} 36. Kh1 {[%clk 0:00:08]}  Qc1+ {[%clk 0:00:14]} 37. Kh2 {[%clk 0:00:09]}  Qf4+ {[%clk 0:00:14]} 38. Kg1 {[%clk 0:00:08]}  Qe3+ {[%clk 0:00:14]} 39. Kh2 {[%clk 0:00:08]}  Qf4+ {[%clk 0:00:14]} 1/2-1/2


[Site "https://www.chess.com"]

[Event "Titled Tuesday Blitz November 15 Late 2022"]
[White "Ali Abdullahi, Farah"]
[Black "Hajiyev, Kanan"]
[WhiteFideId "16100212"]
[BlackFideId "13404148"]
[WhiteElo "2346"]
[BlackElo "2118"]
[Result "0-1"]
[Round "08"]
[TimeControl "180+1"]
[Date "2022.11.16"]
[WhiteClock "0:00:17"]
[BlackClock "0:00:33"]

1. b3 {[%clk 0:02:59]}  Nf6 {[%clk 0:02:57]} 2. Bb2 {[%clk 0:02:59]}  g6 {[%clk 0:02:58]} 3. e3 {[%clk 0:02:59]}  Bg7 {[%clk 0:02:58]} 4. Nf3 {[%clk 0:02:59]}  O-O {[%clk 0:02:58]} 5. Be2 {[%clk 0:02:59]}  a5 {[%clk 0:02:57]} 6. a3 {[%clk 0:02:59]}  a4 {[%clk 0:02:56]} 7. b4 {[%clk 0:02:59]}  b6 {[%clk 0:02:57]} 8. d4 {[%clk 0:02:59]}  Bb7 {[%clk 0:02:57]} 9. c4 {[%clk 0:02:59]}  d5 {[%clk 0:02:53]} 10. Nc3 {[%clk 0:02:58]}  e6 {[%clk 0:02:52]} 11. Nxa4 {[%clk 0:02:57]}  dxc4 {[%clk 0:02:43]} 12. Nc3 {[%clk 0:02:52]}  c5 {[%clk 0:02:25]} 13. Bxc4 {[%clk 0:02:36]}  cxd4 {[%clk 0:02:19]} 14. Qxd4 {[%clk 0:02:28]}  Qxd4 {[%clk 0:02:13]} 15. exd4 {[%clk 0:02:24]}  Bxf3 {[%clk 0:02:13]} 16. gxf3 {[%clk 0:02:24]}  Rd8 {[%clk 0:02:13]} 17. Nb5 {[%clk 0:02:19]}  Nc6 {[%clk 0:02:11]} 18. h4 {[%clk 0:01:44]}  Rac8 {[%clk 0:02:07]} 19. Be2 {[%clk 0:01:41]}  Nh5 {[%clk 0:02:03]} 20. Rb1 {[%clk 0:01:16]}  Nxd4 {[%clk 0:01:53]} 21. Bxd4 {[%clk 0:01:14]}  Bxd4 {[%clk 0:01:54]} 22. Nxd4 {[%clk 0:01:13]}  Rxd4 {[%clk 0:01:55]} 23. a4 {[%clk 0:01:02]}  Rc2 {[%clk 0:01:49]} 24. a5 {[%clk 0:00:54]}  bxa5 {[%clk 0:01:50]} 25. bxa5 {[%clk 0:00:55]}  Rdd2 {[%clk 0:01:50]} 26. Bb5 {[%clk 0:00:38]}  Nf4 {[%clk 0:01:47]} 27. O-O {[%clk 0:00:36]}  Nh3+ {[%clk 0:01:42]} 28. Kg2 {[%clk 0:00:36]}  Nxf2 {[%clk 0:01:42]} 29. a6 {[%clk 0:00:28]}  h5 {[%clk 0:01:34]} 30. Kg3 {[%clk 0:00:26]}  e5 {[%clk 0:01:14]} 31. a7 {[%clk 0:00:23]}  Ra2 {[%clk 0:00:47]} 32. Ba4 {[%clk 0:00:19]}  Nd3 {[%clk 0:00:33]} 33. a8=Q+ {[%clk 0:00:18]}  Kg7 {[%clk 0:00:33]} 34. Rg1 {[%clk 0:00:17]}  Nf4 {[%clk 0:00:33]} 0-1


[Site "https://www.chess.com"]

[Event "Titled Tuesday Blitz November 15 Late 2022"]
[White "Andronescu, Madalin"]
[Black "Liu, Kelsey"]
[WhiteFideId "1217275"]
[BlackFideId "30944481"]
[WhiteElo "1946"]
[BlackElo "2277"]
[Result "0-1"]
[Round "08"]
[TimeControl "180+1"]
[Date "2022.11.16"]
[WhiteClock "0:00:28"]
[BlackClock "0:01:28"]

1. e4 {[%clk 0:03:00]}  c5 {[%clk 0:03:00]} 2. Nf3 {[%clk 0:03:00]}  e6 {[%clk 0:03:00]} 3. d4 {[%clk 0:03:01]}  cxd4 {[%clk 0:03:01]} 4. Nxd4 {[%clk 0:03:01]}  Nc6 {[%clk 0:03:02]} 5. Be3 {[%clk 0:03:00]}  Nf6 {[%clk 0:03:00]} 6. Be2 {[%clk 0:03:00]}  Nxe4 {[%clk 0:02:59]} 7. O-O {[%clk 0:03:00]}  Be7 {[%clk 0:02:59]} 8. Nc3 {[%clk 0:02:57]}  Nxc3 {[%clk 0:02:58]} 9. bxc3 {[%clk 0:02:57]}  d5 {[%clk 0:02:58]} 10. Bd3 {[%clk 0:02:54]}  Bd7 {[%clk 0:02:57]} 11. Qg4 {[%clk 0:02:38]}  Bf6 {[%clk 0:02:47]} 12. Rae1 {[%clk 0:02:30]}  Ne5 {[%clk 0:02:44]} 13. Qg3 {[%clk 0:02:28]}  Nxd3 {[%clk 0:02:44]} 14. cxd3 {[%clk 0:02:27]}  O-O {[%clk 0:02:44]} 15. Bh6 {[%clk 0:02:20]}  Kh8 {[%clk 0:02:43]} 16. Bf4 {[%clk 0:02:19]}  Rc8 {[%clk 0:02:32]} 17. Bd6 {[%clk 0:02:17]}  Re8 {[%clk 0:02:24]} 18. Ne2 {[%clk 0:01:58]}  e5 {[%clk 0:02:20]} 19. d4 {[%clk 0:01:50]}  e4 {[%clk 0:02:00]} 20. Rb1 {[%clk 0:01:20]}  b6 {[%clk 0:01:53]} 21. Rfe1 {[%clk 0:01:17]}  Ba4 {[%clk 0:01:52]} 22. Bb4 {[%clk 0:01:11]}  Bc2 {[%clk 0:01:51]} 23. Rb2 {[%clk 0:01:11]}  Bd3 {[%clk 0:01:51]} 24. Nf4 {[%clk 0:01:11]}  Bc4 {[%clk 0:01:48]} 25. Nh5 {[%clk 0:01:10]}  Rg8 {[%clk 0:01:48]} 26. f3 {[%clk 0:00:57]}  Bh4 {[%clk 0:01:47]} 27. Qe5 {[%clk 0:00:32]}  Bxe1 {[%clk 0:01:44]} 28. Be7 {[%clk 0:00:32]}  Qe8 {[%clk 0:01:40]} 29. fxe4 {[%clk 0:00:30]}  Bxc3 {[%clk 0:01:30]} 30. Rf2 {[%clk 0:00:28]}  Bxd4 {[%clk 0:01:27]} 31. Qxd4 {[%clk 0:00:28]}  Qxe7 {[%clk 0:01:28]} 0-1


[Site "https://www.chess.com"]

[Event "Titled Tuesday Blitz November 15 Late 2022"]
[White "Arbunic Castro, Giovanna"]
[Black "Young, Ryan"]
[WhiteFideId "3400549"]
[BlackFideId "2049945"]
[WhiteElo "1952"]
[BlackElo "2295"]
[Result "1-0"]
[Round "08"]
[TimeControl "180+1"]
[Date "2022.11.16"]
[WhiteClock "0:01:10"]
[BlackClock "0:00:01"]

1. e4 {[%clk 0:02:53]}  e5 {[%clk 0:03:00]} 2. d4 {[%clk 0:02:52]}  exd4 {[%clk 0:02:59]} 3. Qxd4 {[%clk 0:02:52]}  Nc6 {[%clk 0:02:59]} 4. Qe3 {[%clk 0:02:53]}  Nf6 {[%clk 0:02:59]} 5. Nc3 {[%clk 0:02:53]}  Bb4 {[%clk 0:03:00]} 6. Bd2 {[%clk 0:02:52]}  O-O {[%clk 0:03:00]} 7. O-O-O {[%clk 0:02:52]}  Re8 {[%clk 0:03:01]} 8. f3 {[%clk 0:02:52]}  d6 {[%clk 0:02:17]} 9. g4 {[%clk 0:02:50]}  a5 {[%clk 0:02:10]} 10. g5 {[%clk 0:02:49]}  Nd7 {[%clk 0:02:07]} 11. h4 {[%clk 0:02:45]}  a4 {[%clk 0:01:58]} 12. a3 {[%clk 0:02:44]}  Bc5 {[%clk 0:01:59]} 13. Qf4 {[%clk 0:02:42]}  Nf8 {[%clk 0:01:48]} 14. h5 {[%clk 0:02:34]}  Ne6 {[%clk 0:01:39]} 15. Qg3 {[%clk 0:02:32]}  Rb8 {[%clk 0:01:35]} 16. f4 {[%clk 0:02:17]}  Bd7 {[%clk 0:01:23]} 17. h6 {[%clk 0:02:16]}  g6 {[%clk 0:01:20]} 18. Nd5 {[%clk 0:02:15]}  Kh8 {[%clk 0:00:54]} 19. Bc3+ {[%clk 0:02:11]}  Bd4 {[%clk 0:00:54]} 20. f5 {[%clk 0:02:01]}  Nxg5 {[%clk 0:00:31]} 21. Rxd4 {[%clk 0:01:51]}  Ne5 {[%clk 0:00:11]} 22. f6 {[%clk 0:01:38]}  c6 {[%clk 0:00:06]} 23. Ne7 {[%clk 0:01:28]}  Ne6 {[%clk 0:00:06]} 24. Rxd6 {[%clk 0:01:25]}  Nd3+ {[%clk 0:00:01]} 25. Bxd3 {[%clk 0:01:23]}  Qc7 {[%clk 0:00:02]} 26. e5 {[%clk 0:01:15]}  b5 {[%clk 0:00:01]} 27. Nxg6+ {[%clk 0:01:10]}  hxg6 {[%clk 0:00:01]} 28. Bxg6 {[%clk 0:01:10]} 1-0


[Site "https://www.chess.com"]